Cogmind - Beta 13 @@@ ROGUE MODE // 2024.04.04 @ 16:43:30 Player: Aa1k Result: Self-destructed Performance ------------- Evolutions (3) 1500 Regions Visited (5) 1000 Robots Destroyed (19) 95 Value Destroyed (503) 503 Prototype IDs (0) 0 Alien Tech Used (0) 0 Bonus (0) 0 TOTAL SCORE: 3098 Bonus ------- None Cogmind --------- Core Integrity 637/700 Matter 263/300 Energy 325/325 System Corruption 0% Temperature Warm (168) Movement Flying (280) Ox3 Location -7/Lower Caves Parts ------- > --- POWER (3) -------- Improved Ion Engine Light Nuclear Core > --- PROPULSION (6) --- Flight Unit > --- UTILITY (2) ------ Improved Light Armor Plating > --- WEAPON (2) ------- Mini Grenade Launcher > --- INVENTORY (5) ---- Improved Light Armor Plating High-powered Tractor Beam Rocket Launcher Mini Grenade Launcher Mini Grenade Launcher Peak State ------------ > --- POWER ------------ Improved Ion Engine Light Nuclear Core > --- PROPULSION ------- Flight Unit Flight Unit Flight Unit Flight Unit VTOL Module > --- UTILITY ---------- Improved Cooling System Improved Light Armor Plating > --- WEAPON ----------- Rocket Launcher Mini Grenade Launcher > --- INVENTORY -------- Improved Light Armor Plating High-powered Tractor Beam Mini Grenade Launcher Mini Grenade Launcher Mini Grenade Launcher [Rating: 23] Favorites ----------- Power Ion Engine Engine Ion Engine Power Core Light Nuclear Core Propulsion Flight Unit Wheel Wheel Flight Unit Flight Unit Utility Light Armor Plating Device Long-range Tractor Beam Storage High-capacity Storage Unit Protection Light Armor Plating Weapon Light Assault Rifle Ballistic Gun Light Assault Rifle Launcher Mini Grenade Launcher Build | -11 -10 -9 -8 -7 -7 ------- Run | Yrd Mat Mat Mat Fac Low Slots Evolved 6 | . . 2 2 2 . Power 2 | . . . 1 1 . Propulsion 4 | . . 2 1 1 . Utility . | . . . . . . Weapon . | . . . . . . Parts Attached 28 | 6 4 9 7 2 . Power 6 | 1 . 2 3 . . Engine 5 | 1 . 2 2 . . Core 1 | . . . 1 . . Reactor . | . . . . . . Propulsion 7 | 2 . 4 1 . . Treads . | . . . . . . Leg . | . . . . . . Wheel 2 | 2 . . . . . Hover . | . . . . . . Flight 5 | . . 4 1 . . Utility 9 | 1 2 3 2 1 . Device 3 | . . 1 1 1 . Storage 2 | 1 1 . . . . Processor . | . . . . . . Hackware . | . . . . . . Protection 4 | . 1 2 1 . . Artifact . | . . . . . . Weapon 6 | 2 2 . 1 1 . Energy Gun . | . . . . . . Energy Cannon . | . . . . . . Ballistic Gun 2 | 2 . . . . . Ballistic Cannon . | . . . . . . Launcher 4 | . 2 . 1 1 . Special Weapon . | . . . . . . Impact Weapon . | . . . . . . Slashing Weapon . | . . . . . . Piercing Weapon . | . . . . . . Special Melee Weapon . | . . . . . . Unidentified Prototypes . | . . . . . . Parts Lost 7 | . 2 . 1 . 4 Power 1 | . . . 1 . . Propulsion 5 | . 1 . . . 4 Utility 1 | . 1 . . . . Weapon . | . . . . . . Highest Loss Streak 4 | . 1 . 1 . 4 To Critical Strikes . | . . . . . . Average Slot Usage (%) 89 | . 86 95 95 84 74 Engine 12 | . 14 11 15 7 7 Core 1 | . . . . 7 7 Wheel 8 | . 19 . . . . Flight 23 | . . 41 43 38 34 Device 4 | . . 10 8 7 3 Storage 6 | . 14 1 . . . Protection 9 | . 10 8 9 7 7 Ballistic Gun 10 | . 14 11 7 . . Launcher 12 | . 13 11 10 15 13 Naked Turns . | . . . . . . Heaviest Build 52 | 12 52 13 20 20 19 Greatest Support 20 | 20 20 16 20 20 20 Greatest Overweight (x) 5 | . 5 . . . 1 Average Overweight (x) . | . 2 . . . . Largest Inventory Capacity 20 | 8 20 20 5 5 5 Average Capacity 10 | 6 17 6 5 5 5 Most Carried 18 | 4 18 18 5 5 5 Average Carried 7 | 1 11 5 4 5 5 Final Capacity 20 | 8 20 5 5 5 5 Final Carried 18 | 4 18 5 5 5 5 Class Distribution -------------------- 46% | Sprinter 45% | Mutant 8% | Scavenger-Sprinter Dominant Class ---------------- Mutant | -10/Materials Sprinter | -9/Materials Sprinter | -8/Materials Sprinter | -7/Factory Sprinter | -7/Lower Caves Resources | -11 -10 -9 -8 -7 -7 ----------- Run | Yrd Mat Mat Mat Fac Low Matter Collected 742 | 126 150 62 361 . 43 Remotely 423 | . . 62 361 . . Salvage Created 496 | . 235 64 142 . 55 Parts 37 | . 22 4 9 . 2 Haulers Intercepted 1 | . 1 . . . . Recyclers Shooed . | . . . . . . Parts Field Recycled . | . . . . . . Retrieved Matter . | . . . . . . Parts Self-Destructed 1 | . . . . . 1 Prevented 2 | . . . . . 2 Kills | -11 -10 -9 -8 -7 -7 ------- Run | Yrd Mat Mat Mat Fac Low Combat Hostiles Destroyed 12 | . 5 2 4 . 1 Guns 4 | . 3 1 . . . AOE 8 | . 2 1 4 . 1 Classes Destroyed 10 | . 7 2 1 . . Worker 1 | . . 1 . . . Builder 1 | . 1 . . . . Hauler 1 | . 1 . . . . Recycler 1 | . 1 . . . . Operator 1 | . 1 . . . . Watcher 2 | . 2 . . . . Swarmer 3 | . 3 . . . . Grunt 7 | . 2 1 3 . 1 Duelist 1 | . . 1 . . . Sentry 1 | . . . 1 . . Best Kill Streak 6 | . 6 2 3 . 1 Combat Bots Only 3 | . 3 1 3 . 1 Max Kills in Single Turn 2 | . 2 2 2 . 1 Gunslinging . | . . . . . . Exploded 2 | . 1 1 2 . 1 Melee . | . . . . . . Uniques/NPCs Destroyed . | . . . . . . Combat | -11 -10 -9 -8 -7 -7 -------- Run | Yrd Mat Mat Mat Fac Low Hostile Shots Fired 99 | . 29 1 22 . 47 Missed 41 | . 8 1 8 . 24 Damage Taken 875 | . 311 . 267 . 297 Core 154 | . 76 . 15 . 63 Absorbed by Shields . | . . . . . . Core Remaining (%) 91 | 100 69 100 97 . . Volleys Fired 52 | . 32 8 9 1 2 Largest 2 | . 2 2 2 2 2 Hottest 60 | . 50 50 50 60 60 Shots Fired 77 | . 44 11 16 2 4 Gun 49 | . 32 8 9 . . Cannon . | . . . . . . Launcher 28 | . 12 3 7 2 4 Special . | . . . . . . Kinetic 49 | . 32 8 9 . . Thermal . | . . . . . . Explosive 28 | . 12 3 7 2 4 Electromagnetic . | . . . . . . Robot Hit Streak 5 | . 3 5 2 1 1 Robot Miss Streak 4 | . 4 3 3 1 1 Penetration Max . | . . . . . . Secondary Targets . | . . . . . . Shots Hit Robots 37 | . 21 8 6 1 1 Core Hits 45 | . 19 7 11 1 7 Critical Kills . | . . . . . . Critical Parts Destroyed . | . . . . . . Critical Strikes . | . . . . . . Melee Attacks . | . . . . . . Impact . | . . . . . . Slashing . | . . . . . . Piercing . | . . . . . . Sneak Attacks . | . . . . . . Combat Hostiles . | . . . . . . Follow-up Attacks . | . . . . . . Damage Inflicted 1471 | . 737 181 295 52 206 Guns 173 | . 122 44 7 . . Cannons . | . . . . . . Explosions 1298 | . 615 137 288 52 206 Melee . | . . . . . . Ramming . | . . . . . . Kinetic 173 | . 122 44 7 . . Thermal . | . . . . . . Explosive 1298 | . 615 137 288 52 206 Electromagnetic . | . . . . . . Impact . | . . . . . . Slashing . | . . . . . . Piercing . | . . . . . . Highest Corruption . | . . . . . . Average Corruption . | . . . . . . Corruption Purged . | . . . . . . Corruption Blocked . | . . . . . . Overload Shots . | . . . . . . Overflow Damage 24 | . 10 . . 14 . Projectiles . | . . . . . . Explosions 24 | . 10 . . 14 . Melee . | . . . . . . Knockbacks . | . . . . . . Impact . | . . . . . . Kinetic . | . . . . . . Secondary . | . . . . . . Self-Inflicted Damage 158 | . 70 . 41 . 47 Shots 7 | . 4 . 1 . 2 Rammed . | . . . . . . Targets Rammed . | . . . . . . Kicked . | . . . . . . Crushed . | . . . . . . Highest Temperature 310 | . 97 28 310 14 161 Average Temperature 86 | . 30 10 113 8 76 Received Heat Transfer 321 | . 84 . 135 . 102 Siege Activations . | . . . . . . Robots Corrupted . | . . . . . . Combat Hostiles . | . . . . . . Parts Fried . | . . . . . . Impact Corruptions . | . . . . . . Robots Melted . | . . . . . . Combat Hostiles . | . . . . . . Parts Melted . | . . . . . . Heat Transferred . | . . . . . . Parts Sabotaged . | . . . . . . Parts Stolen . | . . . . . . Parts Stripped . | . . . . . . Power Chain Reactions . | . . . . . . Alert | -11 -10 -9 -8 -7 -7 ------- Run | Yrd Mat Mat Mat Fac Low Peak Influence 353 | . 227 269 353 242 . Initial 155 | . . 93 113 155 . Average 185 | . 164 171 266 196 . Maximum Alert Level 1 | . 1 1 1 1 . Low Security (%) 46 | 100 43 55 28 54 . Level 1 53 | . 56 44 71 45 . Level 2 . | . . . . . . Level 3 . | . . . . . . Level 4 . | . . . . . . Level 5 . | . . . . . . High Security . | . . . . . . Max Security . | . . . . . . Squads Dispatched 2 | . . . 1 1 . Investigation . | . . . . . . Extermination . | . . . . . . Reinforcement 2 | . . . 1 1 . Assault . | . . . . . . Garrison . | . . . . . . Intercept . | . . . . . . Searches Triggered . | . . . . . . Construction Impeded . | . . . . . . Haulers Reinforced . | . . . . . . Active Scanning Responses . | . . . . . . Cargo Convoy Interrupts . | . . . . . . Stealth | -11 -10 -9 -8 -7 -7 --------- Run | Yrd Mat Mat Mat Fac Low Distress Signals 3 | . 1 1 1 . . Communications Jammed . | . . . . . . Distress Signals . | . . . . . . Times Spotted 43 | . 13 5 17 3 5 Peak Tracking Total 9 | . 4 4 9 2 5 Tactical Retreats 3 | . . 1 2 . . Traps | -11 -10 -9 -8 -7 -7 ------- Run | Yrd Mat Mat Mat Fac Low Traps Triggered . | . . . . . . Indirectly . | . . . . . . Trap Hack Attempts . | . . . . . . Triggered . | . . . . . . Disarmed . | . . . . . . Reprogrammed . | . . . . . . Reused . | . . . . . . Traps Extracted . | . . . . . . Installed . | . . . . . . Triggered 1 | . . . . . 1 Machines | -11 -10 -9 -8 -7 -7 ---------- Run | Yrd Mat Mat Mat Fac Low Machines Disabled 1 | . . 1 . . . Max in Single Turn 1 | . . 1 . . . Machines Repaired . | . . . . . . Machines Dismantled . | . . . . . . Machines Sabotaged . | . . . . . . Overloaded Fab Kills . | . . . . . . Hacking | -11 -10 -9 -8 -7 -7 --------- Run | Yrd Mat Mat Mat Fac Low Machines Accessed 1 | . 1 . . . . Terminals 1 | . 1 . . . . Fabricators . | . . . . . . Repair Stations . | . . . . . . Recycling Units . | . . . . . . Scanalyzers . | . . . . . . Garrison Access . | . . . . . . Total Hacks 1 | . 1 . . . . Successful . | . . . . . . Failed 1 | . 1 . . . . Catastrophic . | . . . . . . Database Lockouts . | . . . . . . Manual 1 | . 1 . . . . Terminals 1 | . 1 . . . . Fabricators . | . . . . . . Repair Stations . | . . . . . . Recycling Units . | . . . . . . Scanalyzers . | . . . . . . Garrison Access . | . . . . . . Terminal Hacks . | . . . . . . Fabricator Hacks . | . . . . . . Repair Station Hacks . | . . . . . . Recycling Unit Hacks . | . . . . . . Scanalyzer . | . . . . . . Garrison Access Hacks . | . . . . . . Unauthorized Hacks . | . . . . . . Terminals . | . . . . . . Fabricators . | . . . . . . Repair Stations . | . . . . . . Recycling Units . | . . . . . . Scanalyzers . | . . . . . . Garrison Access . | . . . . . . Data Cores Recovered . | . . . . . . Used . | . . . . . . Hacking Detections . | . . . . . . Full Trace Events . | . . . . . . Feedback Events . | . . . . . . Feedback Blocked . | . . . . . . Robot Schematics Acquired . | . . . . . . Robots Built . | . . . . . . Authchips . | . . . . . . Time . | . . . . . . Total Robot Build Rating . | . . . . . . Part Schematics Acquired . | . . . . . . Parts Built . | . . . . . . Authchips . | . . . . . . Time . | . . . . . . Total Part Build Rating . | . . . . . . Parts Repaired . | . . . . . . Time . | . . . . . . Parts Recycled . | . . . . . . Recycled Matter . | . . . . . . Retrieved Matter . | . . . . . . Retrieved Components . | . . . . . . Parts Scanalyzed . | . . . . . . Part Schematics Acquired . | . . . . . . Parts Damaged . | . . . . . . Bothacking | -11 -10 -9 -8 -7 -7 ------------ Run | Yrd Mat Mat Mat Fac Low Used RIF Installer . | . . . . . . Robots Hacked . | . . . . . . Non-combat . | . . . . . . Combat . | . . . . . . Robot Hacks Applied . | . . . . . . Relay Couplers Released . | . . . . . . Fabnet Peak Effective % . | . . . . . . Robots Rewired . | . . . . . . Allies Hacked . | . . . . . . Hacks Repelled . | . . . . . . Allies | -11 -10 -9 -8 -7 -7 -------- Run | Yrd Mat Mat Mat Fac Low Total Allies . | . . . . . . Largest Group . | . . . . . . Highest-Rated Group . | . . . . . . Highest-Rated Ally . | . . . . . . Total Orders . | . . . . . . Ally Attacks . | . . . . . . Total Damage . | . . . . . . Kills . | . . . . . . Allies Corrupted . | . . . . . . Allies Melted . | . . . . . . Intel | -11 -10 -9 -8 -7 -7 ------- Run | Yrd Mat Mat Mat Fac Low Robot Analysis Total . | . . . . . . Derelict Logs Recovered . | . . . . . . Drone Launches . | . . . . . . Drone Recoveries . | . . . . . . Exploration | -11 -10 -9 -8 -7 -7 ------------- Run | Yrd Mat Mat Mat Fac Low Turns Passed 880 | 48 360 142 210 86 34 Spaces Moved 1421 | 45 221 263 501 295 96 Core 4 | 4 . . . . . Treads . | . . . . . . Legs . | . . . . . . Wheels 262 | 41 221 . . . . Hover . | . . . . . . Flight 1155 | . . 263 501 295 96 Fastest Speed 27 | 50 80 31 27 27 27 Average Speed 44 | 77 122 31 27 27 28 Slowest Speed 155 | 80 155 31 31 27 112 Overloaded Moves . | . . . . . . Propulsion Burnouts . | . . . . . . Robots Hopped 7 | . . 2 2 2 1 Cave-ins Triggered . | . . . . . . Exploration Rate (%) 24 | 4 37 30 47 12 19 Regions Visited 5 Branch Regions 1 Pre-discovered Areas . | . . . . . . Known Exits Taken . | . . . . . . Unknown Exits Taken 5 | 1 1 1 1 1 . Scrap Searched . | . . . . . . Spaces Dug . | . . . . . . Terrain Destroyed 188 | . 52 29 63 15 29 Melee . | . . . . . . Projectile . | . . . . . . AOE 188 | . 52 29 63 15 29 Terrain Rammed . | . . . . . . Walls Destroyed . | . . . . . . Machines Disabled . | . . . . . . Actions | -11 -10 -9 -8 -7 -7 --------- Run | Yrd Mat Mat Mat Fac Low Total 1590 | 55 273 315 554 295 98 Wait 61 | . 1 26 34 . . Move 1402 | 44 220 258 496 290 94 Hop 7 | . . 2 2 2 1 Pick Up 19 | 5 13 . 1 . . Fast Attach 14 | 5 2 2 4 1 . Attach 7 | 1 . 5 1 . . Detach 1 | . 1 . . . . Swap 7 | . 2 2 2 1 . Drop 20 | . 2 12 5 . 1 Fire 52 | . 32 8 9 1 2 Melee . | . . . . . . Ram . | . . . . . . Kick . | . . . . . . Crush . | . . . . . . Escape Stasis . | . . . . . . Rewire . | . . . . . . Trap . | . . . . . . Miscellaneous . | . . . . . . Route ------- -11/Scrapyard -10/Materials -9/Materials -8/Materials -7/Factory -7/Lower Caves History --------- Turn | Location | Event 36 | -11/Scrapyard | Discovered new exit (range 15) 49 | -11/Scrapyard | Entered Materials 302 | -10/Materials | Build established: Mutant 387 | -10/Materials | Discovered new exit (range 3) 409 | -10/Materials | Entered another Materials area 409 | -9/Materials | Evolved 2 slots: Propulsion x2 541 | -9/Materials | Discovered new exit (range 6) 551 | -9/Materials | Entered another Materials area 551 | -8/Materials | Evolved 2 slots: Power x1, Propulsion x1 759 | -8/Materials | Discovered new exit (range 10) 761 | -8/Materials | Entered Factory 761 | -7/Factory | Evolved 2 slots: Power x1, Propulsion x1 843 | -7/Factory | Discovered new exit (range 12) 847 | -7/Factory | Entered Lower Caves 850 | -7/Lower Caves | Spotted B-75 Beast 874 | -7/Lower Caves | Attracted the attention of an 0b10 checkpoint 881 | -7/Lower Caves | Self-destructed Last Messages --------------- O-24 Administrator: "IFF HANDSHAKE FAILED. SECURING TERMINAL." ALERT: Hostiles spotted, dispatching reinforcements to Terminal F018. K-01 Serf collects debris. EXIT=FOUND LOCATION=UNKNOWN GOAL=ESCAPE Acquired 43 matter. M-14 Sweeper fails to extract Fire Trap. Imp. Cooling System blasted off. G-50 Soldier destroyed. Y-54 Guardian: "INTERCEPTING UNREGISTERED DERELICT." Flight Unit destroyed. The unstable cave ceiling collapses. Dropped Mni. Grenade Launcher. Flight Unit destroyed. VTOL Module destroyed. Flight Unit destroyed. Map ----- +----------------------------------------------------+ | | | | | | | ?????????????????????????????????????????????????? | | ?????????????????????????????????????????????????? | | ?????????????????????????????????????????????????? | | ?????????????????????????????????????????????????? | | ?????????????????????????????????????????????????? | | ?????????????????????????????????????????????????? | | ?????????????????????????????????????????????????? | | ?????????????????????????????????????????????????? | | ?????????????????????????????????????????????????? | | ?????????????????????????????????????????????????? | | ?????????????????????????????????????????????????? | | ?????????????????????????????????????????????????? | | ?????????????????????????????????????????????????? | | ?????????????????????????????????????????????????? | | ?????????????????????????????????????????????????? | | ????????????????????????#########????????????????? | | ????????????????###?????# #????????????????? | | ????????????????# ##????# #????????????????? | | ???????????????## ##???# #????????????????? | | ???????????????# ##### ##???????????????? | | ???????????##### Y #???????????????? | | ??????????## #???????????????? | | ??????????# *g] @ #???????????????? | | ############ %g ###???????????????? | | # ## ## ## # #????????????????? | | # ### # #????????????????? | | " ### #?# ### ######????????????????? | | # #?# #### ###?????????????????????? | | # #?# ##??# ##### ##???????????????????????? | | # #?## #???# ????####????????????????????????? | | # #??######???#?????????????????????????????????? | | # #?????????????????????????????????????????????? | | # ?????????????????????????????????????????????? | | ?????????????????????????????????????????????? | | ?????????????????????????????????????????????? | | ?????????????????????????????????????????????? | | ????????????????????????????????????????????? | | ????????????????????????????????????????????? | | #### ????????????????????????????????????????????? | | ???? ????????????????????????????????????????????? | | ?????????????????????????????????????????????????? | | ?????????????????????????????????????????????????? | | ?????????????????????????????????????????????????? | | ?????????????????????????????????????????????????? | | ?????????????????????????????????????????????????? | | ?????????????????????????????????????????????????? | | ?????????????????????????????????????????????????? | +----------------------------------------------------+ Best States ------------- Heat Dissipation 61 Energy Generation 21 Energy Capacity 325 Matter Stores 300 Matter Capacity 300 Sight Range 16 Terrain Scan Density 10 Armor Coverage 150 Evasion (%) 64 Item Schematics ----------------- None Robot Schematics ------------------ None Fabricated ------------ Nothing Alien Tech Used ----------------- None Achievements -------------- None Challenges ------------ None Game ------ Seed MetafieldLinkedMagmablaster Manual? 0 Play Time 00:19:48 Cumulative 9.8 hours Start 2024.04.04 @ 16:24:02 End 2024.04.04 @ 16:43:30 Sessions 1 Manual Loads 0 Difficulty Rogue Special Mode None Game No. 16 Rogue 16 Adventurer 0 Explorer 0 Win Type - Total 0 Types 0/0/0/0/0/0/0/0/0 Lore% 3 Gallery% 19 Achievement% 13 Wizard Run 0 Options --------- Layout 1 ASCII 0 Keyboard 0 Movement Mouse Keybinds 0 Fullscreen 1 Font 24/Smallcaps Map View 50x35 Zoom Use 0% Tactical HUD 0 Map Filters NONE Filters NONE Steam 1 RUN: d7ec7f1d-0bcf-468c-a5a6-7fa5f6f50a72